fUSD/lending_fUSD_20250606
["ID","MTS","AMOUNT","RATE_DAILY","PERIOD"]
[364678068,1749197448583,-221.5068644,0.00030164,7]
[364678069,1749197448593,-480.0,0.00030164,7]
[364678070,1749197448603,-300.0,0.00030164,7]
[364678071,1749197448614,-424.37092884,0.00030164,7]
[364678072,1749197448624,-486.17086105,0.00030164,7]
[364678073,1749197448634,-490.14906958,0.00030164,7]
[364678074,1749197448644,-480.0,0.00030164,7]
[364678075,1749197448656,-558.33,0.00030164,7]
[364678076,1749197448667,-463.35635532,0.00030164,7]
[364678077,1749197448677,-480.0,0.00030164,7]
[364678078,1749197448687,-480.0,0.00030164,7]
[364678079,1749197448696,-480.0,0.00030164,7]
[364678080,1749197448707,-480.0,0.00030164,7]
[364678081,1749197448717,-483.35483192,0.00030164,7]
[364678082,1749197448727,-488.19165287,0.00030164,7]
[364678083,1749197448739,-480.0,0.00030164,7]
[364678084,1749197448750,-484.39203584,0.00030164,7]
[364678085,1749197448760,-480.0,0.00030164,7]
[364678086,1749197448772,-480.0,0.00030164,7]
[364678087,1749197448782,-489.44083211,0.00030164,7]
[364678088,1749197448793,-480.0,0.00030164,7]
[364678089,1749197448804,-420.0,0.00030164,7]
[364678090,1749197448815,-1533.58,0.00030164,7]
[364678091,1749197448826,-480.0,0.00030164,7]
[364678092,1749197448837,-491.90229553,0.00030164,7]
[364678093,1749197448847,-480.0,0.00030164,7]
[364678094,1749197448858,-480.0,0.00030164,7]
[364678095,1749197448868,-425.80705989,0.00030164,7]
[364678096,1749197448878,-759.98,0.00030164,7]
[364678097,1749197448888,-480.0,0.00030164,7]
[364678098,1749197448899,-483.18040379,0.00030164,7]
[364678099,1749197448909,-151.0,0.00030164,7]
[364678100,1749197448919,-151.0,0.00030164,7]
[364678101,1749197448929,-484.6400219,0.00030164,7]
[364678102,1749197448940,-500.0,0.00030164,7]
[364678103,1749197448949,-486.31721398,0.00030164,7]
[364678104,1749197448958,-480.0,0.00030164,7]
[364678105,1749197448968,-500.0,0.00030164,7]
[364678106,1749197448979,-500.0,0.00030164,7]
[364678107,1749197448990,-480.0,0.00030164,7]
[364678108,1749197449000,-500.0,0.00030164,7]
[364678109,1749197449014,-500.0,0.00030164,7]
[364678110,1749197449025,-500.0,0.00030164,7]
[364678111,1749197449035,-500.0,0.00030164,7]
[364678112,1749197449045,-507.31678381,0.00030164,7]
[364678113,1749197449055,-422.38132047,0.00030164,7]
[364678114,1749197449066,-480.0,0.00030164,7]
[364678115,1749197449076,-583.17,0.00030164,7]
[364678116,1749197449086,-480.0,0.00030164,7]
[364678117,1749197449097,-480.0,0.00030164,7]
[364678118,1749197449108,-336.86568805,0.00030164,7]
[364678119,1749197449119,-633.72,0.00030164,7]
[364678120,1749197449129,-480.0,0.00030164,7]
[364678121,1749197449139,-341.80124131,0.00030164,7]
[364678122,1749197449149,-2000.0,0.00030164,7]
[364678123,1749197449159,-480.0,0.00030164,7]
[364678124,1749197449169,-480.0,0.00030164,7]
[364678125,1749197449180,-331.623274,0.00030164,7]
[364678126,1749197449192,-480.0,0.00030164,7]
[364678127,1749197449202,-480.0,0.00030164,7]
[364678128,1749197449212,-437.21622927,0.00030164,7]
[364678129,1749197449223,-535.50367172,0.00030164,7]
[364678130,1749197449233,-480.0,0.00030164,7]
[364678131,1749197449243,-480.0,0.00030164,7]
[364678132,1749197449253,-331.623274,0.00030164,7]
[364678133,1749197449263,-486.02065922,0.00030164,7]
[364678134,1749197449274,-527.72962559,0.00030164,7]
[364678135,1749197449285,-528.03379447,0.00030164,7]
[364678136,1749197449296,-845.77,0.00030164,7]
[364678137,1749197449307,-480.0,0.00030164,7]
[364678138,1749197449318,-1568.45,0.00030164,7]
[364678139,1749197449328,-480.0,0.00030164,7]
[364678140,1749197449338,-480.0,0.00030164,7]
[364678141,1749197449348,-480.0,0.00030164,7]
[364678142,1749197449358,-151.0,0.00030164,7]
[364678143,1749197449369,-480.0,0.00030164,7]
[364678144,1749197449380,-502.36948059,0.00030164,7]
[364678145,1749197449390,-685.08,0.00030164,7]
[364678146,1749197449400,-151.0,0.00030164,7]
[364678147,1749197449411,-480.0,0.00030164,7]
[364678148,1749197449422,-1963.97,0.00030164,7]
[364678149,1749197449431,-480.0,0.00030164,7]
[364678150,1749197449441,-463.00953548,0.00030164,7]
[364678151,1749197449451,-493.41407649,0.00030164,7]
[364678152,1749197449461,-151.0,0.00030164,7]
[364678153,1749197449471,-151.0,0.00030164,7]
[364678154,1749197449481,-480.0,0.00030164,7]
[364678155,1749197449491,-480.0,0.00030164,7]
[364678156,1749197449501,-500.0,0.00030164,7]
[364678157,1749197449511,-500.0,0.00030164,7]
[364678158,1749197449522,-393.18905018,0.00030164,7]
[364678159,1749197449532,-500.0,0.00030164,7]
[364678160,1749197449542,-500.0,0.00030164,7]
[364678161,1749197449552,-507.73289218,0.00030164,7]
[364678162,1749197449562,-480.0,0.00030164,7]
[364678163,1749197449573,-480.0,0.00030164,7]
[364678164,1749197449583,-480.0,0.00030164,7]
[364678165,1749197449593,-480.0,0.00030164,7]
[364678166,1749197449603,-489.29238845,0.00030164,7]
[364678167,1749197449613,-501.22796512,0.00030164,7]
[364678168,1749197449622,-1619.87,0.00030164,7]
[364678169,1749197449632,-480.0,0.00030164,7]
[364678170,1749197449642,-489.87378188,0.00030164,7]
[364678171,1749197449654,-480.0,0.00030164,7]
[364678172,1749197449665,-480.0,0.00030164,7]
[364678173,1749197449675,-480.0,0.00030164,7]
[364678174,1749197449685,-480.0,0.00030164,7]
[364678175,1749197449695,-480.0,0.00030164,7]
[364678176,1749197449707,-480.0,0.00030164,7]
[364678177,1749197449717,-480.0,0.00030164,7]
[364678178,1749197449728,-338.86547354,0.00030164,7]
[364678179,1749197449738,-480.0,0.00030164,7]
[364678180,1749197449748,-500.0,0.00030164,7]
[364678181,1749197449758,-482.18690529,0.00030164,7]
[364678182,1749197449768,-500.0,0.00030164,7]
[364678183,1749197449778,-500.0,0.00030164,7]
[364678184,1749197449788,-500.0,0.00030164,7]
[364678185,1749197449798,-2063.81,0.00030164,7]
[364678186,1749197449808,-491.46711055,0.00030164,7]
[364678187,1749197449818,-497.24578645,0.00030164,7]
[364678188,1749197449902,-480.0,0.00030164,7]
[364678189,1749197449913,-480.0,0.00030164,7]
[364678190,1749197449923,-479.90748943,0.00030164,7]
[364678191,1749197449933,-483.11270371,0.00030164,7]
[364678192,1749197449942,-480.0,0.00030164,7]
[364678193,1749197449952,-500.0,0.00030164,7]
[364678194,1749197449961,-482.08396667,0.00030164,7]
[364678195,1749197449971,-480.0,0.00030164,7]
[364678196,1749197449981,-480.0,0.00030164,7]
[364678197,1749197449991,-500.0,0.00030164,7]
[364678198,1749197450001,-500.0,0.00030164,7]
[364678199,1749197450011,-498.46259307,0.00030164,7]
[364678200,1749197450020,-480.0,0.00030164,7]
[364678201,1749197450030,-480.0,0.00030164,7]
[364678202,1749197450039,-392.66732608,0.00030164,7]
[364678203,1749197450048,-151.0,0.00030164,7]
[364678204,1749197450058,-463.23436416,0.00030164,7]
[364678205,1749197450067,-151.0,0.00030164,7]
[364678206,1749197450078,-486.47232307,0.00030164,7]
[364678207,1749197450087,-480.0,0.00030164,7]
[364678208,1749197450096,-482.4439344,0.00030164,7]
[364678209,1749197450106,-480.0,0.00030164,7]
[364678210,1749197450115,-480.0,0.00030164,7]
[364678211,1749197450125,-825.43,0.00030164,7]
[364678212,1749197450135,-480.0,0.00030164,7]
[364678213,1749197450144,-1338.49,0.00030164,7]
[364678214,1749197450154,-606.93062687,0.00030164,7]
[364678215,1749197450163,-480.0,0.00030164,7]
[364678216,1749197450173,-151.0,0.00030164,7]
[364678217,1749197450183,-480.0,0.00030164,7]
[364678218,1749197450193,-151.0,0.00030164,7]
[364678219,1749197450203,-480.0,0.00030164,7]
[364678220,1749197450212,-426.90771548,0.00030164,7]
[364678221,1749197450221,-480.0,0.00030164,7]
[364678222,1749197450232,-151.0,0.00030164,7]
[364678223,1749197450241,-425.16615008,0.00030164,7]
[364678224,1749197450251,-151.0,0.00030164,7]
[364678225,1749197450260,-481.55726094,0.00030164,7]
[364678226,1749197450270,-420.0,0.00030164,7]
[364678227,1749197450280,-1000.0,0.00030164,7]
[364678228,1749197450290,-1096.05,0.00030164,7]
[364678229,1749197450299,-480.0,0.00030164,7]
[364678230,1749197450309,-151.0,0.00030164,7]
[364678231,1749197450319,-480.0,0.00030164,7]
[364678232,1749197450328,-480.0,0.00030164,7]
[364678233,1749197450338,-480.0,0.00030164,7]
[364678234,1749197450347,-480.0,0.00030164,7]
[364678235,1749197450357,-480.0,0.00030164,7]
[364678236,1749197450366,-480.0,0.00030164,7]
[364678237,1749197450375,-151.0,0.00030164,7]
[364678238,1749197450384,-480.0,0.00030164,7]
[364678239,1749197450394,-480.0,0.00030164,7]
[364678240,1749197450403,-383.41112128,0.00030164,7]
[364678241,1749197450413,-480.0,0.00030164,7]
[364678242,1749197450422,-480.0,0.00030164,7]
[364678243,1749197450431,-480.0,0.00030164,7]
[364678244,1749197450442,-480.0,0.00030164,7]
[364678245,1749197450451,-463.74791543,0.00030164,7]
[364678246,1749197450461,-480.0,0.00030164,7]
[364678247,1749197450470,-484.33830044,0.00030164,7]
[364678248,1749197450480,-480.0,0.00030164,7]
[364678249,1749197450489,-1332.67,0.00030164,7]
[364678250,1749197450499,-383.13306308,0.00030164,7]
[364678251,1749197450508,-728.82,0.00030164,7]
[364678252,1749197450517,-480.0,0.00030164,7]
[364678253,1749197450527,-480.0,0.00030164,7]
[364678254,1749197450536,-279.345886,0.00030164,7]
[364678255,1749197450546,-480.0,0.00030164,7]
[364678256,1749197450555,-494.23,0.00030164,7]
[364678257,1749197450565,-941.87,0.00030164,7]
[364678258,1749197450575,-480.0,0.00030164,7]
[364678259,1749197450584,-490.70700859,0.00030164,7]
[364678260,1749197450594,-776.15,0.00030164,7]
[364678261,1749197450604,-151.0,0.00030164,7]
[364678262,1749197450613,-500.0,0.00030164,2]
[364678263,1749197450623,-500.0,0.00030164,2]
[364678264,1749197450633,-500.0,0.00030164,2]
[364678265,1749197450643,-480.0,0.00030164,7]
[364678266,1749197450656,-500.0,0.00030164,2]
[364678267,1749197450665,-279.345886,0.00030164,7]
[364678268,1749197450674,-500.0,0.00030164,2]
[364678269,1749197450685,-500.0,0.00030164,2]
[364678270,1749197450695,-500.0,0.00030164,2]
[364678271,1749197450704,-480.0,0.00030164,7]
[364678272,1749197450714,-500.0,0.00030164,2]
[364678273,1749197450723,-481.2423928,0.00030164,7]
[364678274,1749197450733,-500.0,0.00030164,2]
[364678275,1749197450742,-500.0,0.00030164,2]
[364678276,1749197450751,-500.0,0.00030164,2]
[364678277,1749197450761,-502.53812426,0.00030164,2]
[364678278,1749197450771,-485.58666464,0.00030164,7]
[364678279,1749197450780,-151.0,0.00030164,7]
[364678280,1749197450790,-480.0,0.00030164,7]
[364678281,1749197450799,-1103.59,0.00030164,7]
[364678282,1749197450809,-555.23,0.00030164,7]
[364678283,1749197450819,-480.0,0.00030164,7]
[364678284,1749197450828,-365.53346045,0.00030164,7]
[364678285,1749197450837,-219.9319816,0.00030164,7]
[364678286,1749197450848,-480.0,0.00030164,7]
[364678287,1749197450858,-480.0,0.00030164,7]
[364678288,1749197450867,-480.0,0.00030164,7]
[364678289,1749197450877,-480.0,0.00030164,7]
[364678290,1749197450887,-404.46508848,0.00030164,7]
[364678291,1749197450897,-480.0,0.00030164,7]
[364678292,1749197450905,-484.01917455,0.00030164,7]
[364678293,1749197450915,-480.0,0.00030164,7]
[364678294,1749197450925,-480.0,0.00030164,7]
[364678295,1749197450934,-424.51669055,0.00030164,7]
[364678296,1749197450943,-480.0,0.00030164,7]
[364678297,1749197450952,-480.0,0.00030164,7]
[364678298,1749197450962,-480.0,0.00030164,7]
[364678299,1749197450971,-480.0,0.00030164,7]
[364678300,1749197450982,-400.0,0.00030164,7]
[364678301,1749197450991,-151.611789,0.00030164,7]
[364678302,1749197451001,-487.19512927,0.00030164,7]
[364678303,1749197451011,-2770.23,0.00030164,7]
[364678304,1749197451020,-480.0,0.00030164,7]
[364678305,1749197451030,-480.0,0.00030164,7]
[364678306,1749197451040,-547.4,0.00030164,7]
[364678307,1749197451051,-485.80005832,0.00030164,7]
[364678308,1749197451060,-480.0,0.00030164,7]
[364678309,1749197451070,-480.0,0.00030164,7]
[364678310,1749197451079,-480.0,0.00030164,7]
[364678311,1749197451089,-480.0,0.00030164,7]
[364678312,1749197451100,-480.0,0.00030164,7]
[364678313,1749197451110,-1002.22289094,0.00030164,42]
[364678314,1749197451119,-480.0,0.00030164,7]
[364678315,1749197451129,-480.0,0.00030164,7]
[364678316,1749197451139,-480.0,0.00030164,7]
[364678317,1749197451148,-480.0,0.00030164,7]
[364678318,1749197451162,-151.0,0.00030164,7]
[364678319,1749197451171,-151.0,0.00030164,7]
[364678320,1749197451181,-480.0,0.00030164,7]
[364678321,1749197451192,-500.0,0.00030164,7]
[364678322,1749197451201,-480.0,0.00030164,7]
[364678323,1749197451211,-500.0,0.00030164,7]
[364678324,1749197451221,-500.0,0.00030164,7]
[364678325,1749197451230,-500.0,0.00030164,7]
[364678326,1749197451240,-500.0,0.00030164,7]
[364678327,1749197451250,-151.0,0.00030164,7]
[364678328,1749197451260,-500.0,0.00030164,7]
[364678329,1749197451271,-486.25828105,0.00030164,7]
[364678330,1749197451281,-500.0,0.00030164,7]
[364678331,1749197451291,-152.238814,0.00030164,7]
[364678332,1749197451300,-480.0,0.00030164,7]
[364678333,1749197451310,-500.0,0.00030164,7]
[364678334,1749197451320,-500.0,0.00030164,7]
[364678335,1749197451330,-480.0,0.00030164,7]
[364678336,1749197451339,-480.0,0.00030164,7]
[364678337,1749197451349,-480.0,0.00030164,7]
[364678338,1749197451358,-529.21,0.00030164,7]
[364678339,1749197451367,-480.0,0.00030164,7]
[364678340,1749197451377,-480.0,0.00030164,7]
[364678341,1749197451386,-422.98572044,0.00030164,7]
[364678342,1749197451396,-480.0,0.00030164,7]
[364678343,1749197451406,-480.0,0.00030164,7]
[364678344,1749197451415,-480.0,0.00030164,7]
[364678345,1749197451425,-620.99055429,0.00030164,7]
[364678346,1749197451440,-480.0,0.00030164,7]
[364678347,1749197451450,-500.0,0.00030164,7]
[364678348,1749197451460,-500.0,0.00030164,7]
[364678349,1749197451469,-500.0,0.00030164,7]
[364678350,1749197451479,-500.0,0.00030164,7]
[364678351,1749197451489,-480.0,0.00030164,7]
[364678352,1749197451499,-174.4126255,0.00030164,7]
[364678353,1749197451508,-1231.44,0.00030164,7]
[364678354,1749197451518,-480.0,0.00030164,7]
[364678355,1749197451528,-480.0,0.00030164,7]
[364678356,1749197451539,-480.0,0.00030164,7]
[364678357,1749197451548,-480.0,0.00030164,7]
[364678358,1749197451558,-480.0,0.00030164,7]
[364678359,1749197451567,-483.31325092,0.00030164,7]
[364678360,1749197451577,-151.0,0.00030164,7]
[364678361,1749197451587,-482.89028669,0.00030164,7]
[364678362,1749197451596,-187.931992,0.00030164,7]
[364678363,1749197451606,-480.0,0.00030164,7]
[364678364,1749197451615,-480.0,0.00030164,7]
[364678365,1749197451624,-480.0,0.00030164,7]
[364678366,1749197451634,-480.0000002,0.00030164,7]
[364678367,1749197451644,-802.64,0.00030164,7]
[364678368,1749197451656,-480.0,0.00030164,7]
[364678369,1749197451665,-480.0,0.00030164,7]
[364678370,1749197451675,-480.0,0.00030164,7]
[364678371,1749197451685,-480.0,0.00030164,7]
[364678372,1749197451695,-480.0,0.00030164,7]
[364678373,1749197451705,-641.56807235,0.00030164,30]
[364678374,1749197451714,-485.40579763,0.00030164,7]
[364678375,1749197451724,-400.960197,0.00030164,7]
[364678376,1749197451734,-480.0,0.00030164,7]
[364678377,1749197451744,-400.960197,0.00030164,7]
[364678378,1749197451754,-480.0,0.00030164,7]
[364678379,1749197451764,-486.50299451,0.00030164,7]
[364678380,1749197451773,-480.0,0.00030164,7]
[364678381,1749197451783,-480.0,0.00030164,7]
[364678382,1749197451792,-480.0,0.00030164,7]
[364678383,1749197451802,-957.68,0.00030164,7]
[364678384,1749197451811,-484.15756408,0.00030164,7]
[364678385,1749197451822,-400.960197,0.00030164,7]
[364678386,1749197451832,-480.0,0.00030164,7]
[364678387,1749197451841,-400.960197,0.00030164,7]
[364678388,1749197451850,-368.30618468,0.00030164,7]
[364678389,1749197451860,-480.0,0.00030164,7]
[364678390,1749197451870,-480.0,0.00030164,7]
[364678391,1749197451879,-480.0,0.00030164,7]
[364678392,1749197451889,-484.28061092,0.00030164,7]
[364678393,1749197451899,-480.0,0.00030164,7]
[364678394,1749197451908,-480.0,0.00030164,7]
[364678395,1749197451917,-480.0,0.00030164,7]
[364678396,1749197451928,-480.0,0.00030164,7]
[364678397,1749197451938,-486.91190824,0.00030164,7]
[364678398,1749197451947,-480.0,0.00030164,7]
[364678399,1749197451957,-480.0,0.00030164,7]
[364678400,1749197451967,-480.0,0.00030164,7]
[364678401,1749197451977,-490.83,0.00030164,7]
[364678402,1749197451986,-151.0,0.00030164,7]
[364678403,1749197451996,-151.0,0.00030164,7]
[364678404,1749197452005,-480.0,0.00030164,7]
[364678405,1749197452014,-480.0,0.00030164,7]
[364678406,1749197452024,-480.0,0.00030164,7]
[364678407,1749197452034,-151.0,0.00030164,7]
[364678408,1749197452043,-480.0,0.00030164,7]
[364678409,1749197452053,-480.0,0.00030164,7]
[364678410,1749197452063,-1326.31,0.00030164,7]
[364678411,1749197452073,-480.0,0.00030164,7]
[364678412,1749197452082,-2307.21,0.00030164,7]
[364678413,1749197452091,-481.12102417,0.00030164,7]
[364678414,1749197452101,-151.0,0.00030164,7]
[364678415,1749197452110,-538.6,0.00030164,7]
[364678416,1749197452120,-480.0,0.00030164,7]
[364678417,1749197452129,-494.9345283,0.00030164,7]
[364678418,1749197452138,-1012.38,0.00030164,7]
[364678419,1749197452148,-431.39865136,0.00030164,7]
[364678420,1749197452157,-151.0,0.00030164,7]
[364678421,1749197452166,-428.0309045,0.00030164,7]
[364678422,1749197452176,-602.45845138,0.00030164,7]
[364678423,1749197452186,-484.84353441,0.00030164,7]
[364678424,1749197452195,-555.23119979,0.00030164,7]
[364678425,1749197452205,-429.53819856,0.00030164,7]
[364678426,1749197452215,-480.0,0.00030164,7]
[364678427,1749197452224,-658.82,0.00030164,7]
[364678428,1749197452234,-480.0,0.00030164,7]
[364678429,1749197452244,-480.0,0.00030164,7]
[364678430,1749197452253,-484.16367605,0.00030164,7]
[364678431,1749197452263,-480.0,0.00030164,7]
[364678432,1749197452272,-480.0,0.00030164,7]
[364678433,1749197452283,-465.79842775,0.00030164,7]
[364678434,1749197452293,-480.0,0.00030164,7]
[364678435,1749197452302,-480.0,0.00030164,7]
[364678436,1749197452313,-480.0,0.00030164,7]
[364678437,1749197452323,-480.0,0.00030164,7]
[364678438,1749197452332,-443.50280836,0.00030164,7]
[364678439,1749197452342,-480.0,0.00030164,7]
[364678440,1749197452351,-480.0,0.00030164,7]
[364678441,1749197452361,-1609.58,0.00030164,7]
[364678442,1749197452372,-150.0,0.00030164,7]
[364678443,1749197452382,-150.0,0.00030164,7]
[364678444,1749197452391,-485.89271139,0.00030164,7]
[364678445,1749197452401,-485.50042967,0.00030164,7]
[364678446,1749197452411,-480.0,0.00030164,7]
[364678447,1749197452421,-480.0,0.00030164,7]
[364678448,1749197452430,-21211.33,0.00030164,7]
[364678449,1749197452442,-1000.0,0.00030164,21]
[364678450,1749197452452,-480.0,0.00030164,7]
[364678451,1749197452461,-480.0,0.00030164,7]
[364678452,1749197452470,-480.0,0.00030164,7]
[364678453,1749197452480,-480.0,0.00030164,7]
[364678454,1749197452490,-1822.56,0.00030164,7]
[364678455,1749197452500,-480.0,0.00030164,7]
[364678456,1749197452511,-480.0,0.00030164,7]
[364678457,1749197452521,-464.7628477,0.00030164,7]
[364678458,1749197452531,-2369.76,0.00030164,7]
[364678459,1749197452540,-480.0,0.00030164,7]
[364678460,1749197452550,-954.48,0.00030164,7]
[364678461,1749197452560,-480.0,0.00030164,7]
[364678462,1749197452570,-3344.03,0.00030164,7]
[364678463,1749197452580,-1407.9,0.00030164,7]
[364678464,1749197452589,-1281.857807,0.00030164,7]
[364678465,1749197452600,-1281.857807,0.00030164,7]
[364678466,1749197452609,-480.0,0.00030164,7]
[364678467,1749197452619,-480.0,0.00030164,7]
[364678468,1749197452628,-480.0,0.00030164,7]
[364678469,1749197452638,-480.0,0.00030164,7]
[364678470,1749197452648,-1281.857807,0.00030164,7]
[364678471,1749197452661,-636.922133,0.00030164,7]
[364678472,1749197452671,-1281.857807,0.00030164,7]
[364678473,1749197452680,-480.0,0.00030164,7]
[364678474,1749197452690,-636.922133,0.00030164,7]
[364678475,1749197452701,-2222.98,0.00030164,7]
[364678476,1749197452711,-2210.41,0.00030164,7]
[364678477,1749197452721,-480.0,0.00030164,7]
[364678478,1749197452731,-480.0,0.00030164,7]
[364678479,1749197452741,-1168.31,0.00030164,7]
[364678480,1749197452752,-1433.96,0.00030164,7]
[364678481,1749197452763,-636.922133,0.00030164,7]
[364678482,1749197452773,-636.922133,0.00030164,7]
[364678483,1749197452783,-480.0,0.00030164,7]
[364678484,1749197452792,-480.0,0.00030164,7]
[364678485,1749197452802,-480.0,0.00030164,7]
[364678486,1749197452812,-480.0,0.00030164,7]
[364678487,1749197452823,-1333.62,0.00030164,7]
[364678488,1749197452833,-4588.71,0.00030164,7]
[364678489,1749197452843,-151.0,0.00030164,7]
[364678490,1749197452853,-151.0,0.00030164,7]
[364678491,1749197452862,-2119.73,0.00030164,7]
[364678492,1749197452872,-480.0,0.00030164,7]
[364678493,1749197452882,-863.97,0.00030164,7]
[364678494,1749197452892,-955.42,0.00030164,7]
[364678495,1749197452901,-490.57867284,0.00030164,7]
[364678496,1749197452912,-151.0,0.00030164,7]
[364678497,1749197452922,-486.14436646,0.00030164,7]
[364678498,1749197452932,-151.0,0.00030164,7]
[364678499,1749197452945,-480.0,0.00030164,7]
[364678500,1749197452955,-480.0,0.00030164,7]
[364678501,1749197452967,-480.0,0.00030164,7]
[364678502,1749197452978,-2723.64,0.00030164,7]
[364678503,1749197452989,-480.0,0.00030164,7]
[364678504,1749197452999,-244.21473,0.00030164,7]
[364678505,1749197453010,-480.0,0.00030164,7]
[364678506,1749197453020,-244.21473,0.00030164,7]
[364678507,1749197453031,-480.0,0.00030164,7]
[364678508,1749197453041,-151.0,0.00030164,7]
[364678509,1749197453052,-2057.71,0.00030164,7]
[364678510,1749197453062,-151.0,0.00030164,7]
[364678511,1749197453072,-830.5,0.00030164,7]
[364678512,1749197453082,-481.42441416,0.00030164,7]
[364678513,1749197453093,-488.24189372,0.00030164,7]
[364678514,1749197453103,-244.21473,0.00030164,7]
[364678515,1749197453113,-771.51,0.00030164,7]
[364678516,1749197453122,-244.21473,0.00030164,7]
[364678517,1749197453133,-524.63,0.00030164,7]
[364678518,1749197453144,-480.0,0.00030164,7]
[364678519,1749197453153,-480.0,0.00030164,7]
[364678520,1749197453164,-1510.55,0.00030164,7]
[364678521,1749197453173,-480.0,0.00030164,7]
[364678522,1749197453183,-3222.48,0.00030164,7]
[364678523,1749197453195,-480.0,0.00030164,7]
[364678524,1749197453205,-2530.07,0.00030164,7]
[364678525,1749197453215,-1178.3,0.00030164,7]
[364678526,1749197453224,-489.10900614,0.00030164,7]
[364678527,1749197453234,-480.0,0.00030164,7]
[364678528,1749197453244,-2377.35,0.00030164,7]
[364678529,1749197453254,-4150.0,0.00030164,7]
[364678530,1749197453265,-484.14750242,0.00030164,7]
[364678531,1749197453275,-480.0,0.00030164,7]
[364678532,1749197453286,-872.38,0.00030164,7]
[364678533,1749197453296,-482.97967059,0.00030164,7]
[364678534,1749197453306,-480.0,0.00030164,7]
[364678535,1749197453316,-480.0,0.00030164,7]
[364678536,1749197453326,-480.0,0.00030164,7]
[364678537,1749197453336,-480.0,0.00030164,7]
[364678538,1749197453346,-480.0,0.00030164,7]
[364678539,1749197453355,-492.5637342,0.00030164,7]
[364678540,1749197453365,-1973.05,0.00030164,7]
[364678541,1749197453375,-2396.18,0.00030164,7]
[364678542,1749197453385,-480.0,0.00030164,7]
[364678543,1749197453396,-3870.48,0.00030164,7]
[364678544,1749197453406,-480.0,0.00030164,7]
[364678545,1749197453418,-498.08303476,0.00030164,7]
[364678546,1749197453428,-1978.82,0.00030164,7]
[364678547,1749197453438,-151.0,0.00030164,7]
[364678548,1749197453448,-151.0,0.00030164,7]
[364678549,1749197453458,-678.48,0.00030164,7]
[364678550,1749197453468,-2434.52,0.00030164,7]
[364678551,1749197453479,-490.32581632,0.00030164,7]
[364678552,1749197453490,-613.42799947,0.00030164,7]
[364678553,1749197453501,-425.92291331,0.00030164,7]
[364678554,1749197453511,-320.522805,0.00030164,7]
[364678555,1749197453521,-466.75274969,0.00030164,7]
[364678556,1749197453531,-639.4,0.00030164,7]
[364678557,1749197453542,-480.0,0.00030164,7]
[364678558,1749197453553,-480.0,0.00030164,7]
[364678559,1749197453563,-2932.21,0.00030164,7]
[364678560,1749197453573,-480.0,0.00030164,7]
[364678561,1749197453582,-480.0,0.00030164,7]
[364678562,1749197453592,-187.24343611,0.00030164,7]
[364678563,1749197453601,-480.0,0.00030164,7]
[364678564,1749197453611,-539.04,0.00030164,7]
[364678565,1749197453621,-936.41,0.00030164,7]
[364678566,1749197453631,-865.76,0.00030164,7]
[364678567,1749197453640,-480.0,0.00030164,7]